Cogmind - Beta 17 @@@ ROGUE MODE // 2026.07.17 @ 09:35:06 Player: pinbox Result: Destroyed by G-47 Trooper with Particle Gun Performance ------------- Evolutions (0) 0 Regions Visited (2) 400 Robots Destroyed (27) 135 Value Destroyed (802) 802 Prototype IDs (14) 280 Alien Tech Used (0) 0 Bonus (0) 0 TOTAL SCORE: 1617 Bonus ------- None Cogmind --------- Core Integrity 0/250 Matter 287/300 Energy 180/200 System Corruption 0% Temperature Cool (66) Movement Rolling (120) Ox1 Location -10/Subcaves Parts ------- > --- POWER (1) -------- Subdweller Power Source > --- PROPULSION (2) --- Subdweller Monowheel Subdweller Monowheel > --- UTILITY (2) ------ Large Storage Unit Makeshift Light Armor Plating > --- WEAPON (2) ------- Subdweller Beam Cannon > --- INVENTORY (15) --- Subdweller Power Source Subdweller Power Source Subdweller Power Source Subdweller Monowheel Subdweller Monowheel Subdweller Monowheel Subdweller Monowheel Subdweller Optics Seismic Detector ECM Suite Scrap Shield Subdweller Laser Subdweller Beam Cannon Makeshift Axe Peak State ------------ > --- POWER ------------ Subdweller Power Source > --- PROPULSION ------- Subdweller Monowheel Subdweller Monowheel > --- UTILITY ---------- Large Storage Unit Makeshift Light Armor Plating > --- WEAPON ----------- Subdweller Beam Cannon Subdweller Machine Gun > --- INVENTORY -------- Subdweller Power Source Subdweller Power Source Subdweller Power Source Subdweller Monowheel Subdweller Monowheel Subdweller Monowheel Subdweller Monowheel Subdweller Optics Seismic Detector ECM Suite Scrap Shield Subdweller Laser Subdweller Beam Cannon Makeshift Axe [Rating: 18] Favorites ----------- Power Ion Engine Engine Ion Engine Propulsion Light Treads Treads Light Treads Wheel Subdweller Monowheel Utility Large Storage Unit Device Seismic Detector Storage Large Storage Unit Protection Light Armor Plating Weapon Subdweller Machine Gun Energy Gun Particle Gun Energy Cannon Subdweller Beam Cannon Ballistic Gun Subdweller Machine Gun Build | -11 -10 -10 ------- Run | Yrd Mat Sub Slots Evolved . | . . . Power . | . . . Propulsion . | . . . Utility . | . . . Weapon . | . . . Parts Attached 30 | 7 4 19 Power 3 | 1 . 2 Engine 3 | 1 . 2 Core . | . . . Reactor . | . . . Propulsion 7 | 2 . 5 Treads 4 | 2 . 2 Leg . | . . . Wheel 3 | . . 3 Hover . | . . . Flight . | . . . Utility 8 | 2 3 3 Device 4 | 1 1 2 Storage 2 | 1 1 . Processor . | . . . Hackware . | . . . Protection 2 | . 1 1 Artifact . | . . . Weapon 12 | 2 1 9 Energy Gun 2 | 1 1 . Energy Cannon 4 | . . 4 Ballistic Gun 6 | 1 . 5 Ballistic Cannon . | . . . Launcher . | . . . Special Weapon . | . . . Impact Weapon . | . . . Slashing Weapon . | . . . Piercing Weapon . | . . . Special Melee Weapon . | . . . Unidentified Prototypes . | . . . Parts Lost 13 | . . 13 Power 2 | . . 2 Propulsion 5 | . . 5 Utility 1 | . . 1 Weapon 5 | . . 5 Highest Loss Streak 2 | . . 2 To Critical Strikes . | . . . Average Backups 9 | . 5 11 Power 1 | . 1 1 Propulsion 3 | . 1 4 Utility 3 | . 2 3 Weapon 1 | . . 2 Tool/Special . | . . . Unused Backups 14 | . . 14 Power 3 | . . 3 Propulsion 5 | . . 5 Utility 4 | . . 4 Weapon 2 | . . 2 Tool/Special . | . . . Average Slot Usage (%) 99 | . 99 99 Engine 13 | . 14 13 Treads 21 | . 28 19 Wheel 6 | . . 8 Device 13 | . 11 13 Storage 14 | . 14 14 Energy Gun 4 | . 13 . Energy Cannon 4 | . . 6 Ballistic Gun 19 | . 13 21 Peak Build Rating 18 | 7 8 18 Average Rating 10 | 5 7 11 On Entrance 5 | . 7 8 Avg Prop Armor Cover (%) 4 | . . 4 Naked Turns . | . . . Heaviest Build 41 | 14 33 41 Greatest Support 40 | 40 40 40 Greatest Overweight (x) 2 | . . 2 Average Overweight (x) . | . . . Largest Inventory Capacity 15 | 8 15 15 Average Capacity 14 | 7 14 15 Most Carried 15 | 1 7 15 Average Carried 10 | . 5 12 Final Capacity 15 | 8 15 15 Final Carried 15 | 1 7 15 Class Distribution -------------------- 91% | Mutant 8% | Scavenger-Mutant Dominant Class ---------------- Mutant | -10/Materials Mutant | -10/Subcaves Resources | -11 -10 -10 ----------- Run | Yrd Mat Sub Matter Collected 979 | 282 234 463 Remotely . | . . . Salvage Created 1049 | 89 344 616 Parts 64 | 4 20 40 Haulers Intercepted 1 | . 1 . Recyclers Shooed 2 | 1 1 . Parts Field Recycled . | . . . Retrieved Matter . | . . . Parts Self-Destructed 6 | . . 6 Prevented . | . . . Parts Restored . | . . . Kills | -11 -10 -10 ------- Run | Yrd Mat Sub Combat Hostiles Destroyed 23 | . 8 15 Guns 18 | . 8 10 Cannons 5 | . . 5 Classes Destroyed 9 | 2 4 3 Builder 1 | . 1 . Tunneler 1 | 1 . . Hauler 1 | . 1 . Recycler 1 | 1 . . Swarmer 4 | . 3 1 Grunt 6 | . 5 1 Sentry 1 | . . 1 Artisan 1 | . . 1 Subdweller 12 | . . 12 Best Kill Streak 2 | 2 2 2 Combat Bots Only 2 | . 2 2 Max Kills in Single Turn 1 | 1 1 1 Gunslinging . | . . . Exploded . | . . . Melee . | . . . Uniques/NPCs Destroyed . | . . . Combat | -11 -10 -10 -------- Run | Yrd Mat Sub Hostile Shots Fired 112 | . 28 84 Missed 18 | . 4 14 Hits 94 | . 24 70 Projectile 94 | . 24 70 Critical Strikes 5 | . . 5 Damage Taken 1902 | . 302 1600 Core 254 | . . 254 Absorbed by Shields . | . . . Regen/Repaired (Parts) 137 | . 137 . Core Remaining (%) 100 | 100 . . Volleys Fired 127 | 4 31 92 Largest 2 | 2 2 2 Hottest 110 | 60 85 110 Shots Fired 242 | 8 62 172 Gun 203 | 8 62 133 Cannon 39 | . . 39 Launcher . | . . . Special . | . . . Kinetic 157 | 4 31 122 Thermal 85 | 4 31 50 Explosive . | . . . Electromagnetic . | . . . Robot Hit Streak 23 | 3 18 23 Robot Miss Streak 3 | 1 3 2 Penetration Max . | . . . Secondary Targets 2 | . . 2 Max Gunslinging Chain 1 | . . 1 Shots Hit Robots 128 | 5 43 80 Core Hits 50 | 3 18 29 Critical Kills 1 | . 1 . Critical Parts Destroyed . | . . . Critical Strikes 1 | . 1 . Destroy 1 | . 1 . Melee Attacks . | . . . Impact . | . . . Slashing . | . . . Piercing . | . . . Sneak Attacks . | . . . Combat Hostiles . | . . . Follow-up Attacks . | . . . Damage Inflicted 2106 | 61 648 1397 Guns 1777 | 61 626 1090 Cannons 307 | . . 307 Explosions . | . . . Melee . | . . . Ramming 22 | . 22 . Kinetic 1263 | 40 255 968 Thermal 821 | 21 371 429 Explosive . | . . . Electromagnetic . | . . . Impact . | . . . Slashing . | . . . Piercing . | . . . Highest Corruption . | . . . Average Corruption . | . . . Corruption Purged . | . . . Corruption Blocked . | . . . Overload Shots . | . . . Overflow Damage . | . . . Projectiles . | . . . Explosions . | . . . Melee . | . . . Knockbacks . | . . . Impact . | . . . Kinetic . | . . . Secondary . | . . . Self-Inflicted Damage . | . . . Shots . | . . . Rammed 3 | . 3 . Targets Rammed 3 | . 3 . Kicked . | . . . Crushed . | . . . Highest Temperature 239 | . 183 239 Average Temperature 49 | . 51 42 Received Heat Transfer 718 | . 114 604 Siege Activations . | . . . Martial Activations . | . . . Shielding Activations . | . . . Robots Disrupted . | . . . Combat Hostiles . | . . . Robots Corrupted . | . . . Combat Hostiles . | . . . Parts Fried . | . . . Impact Corruptions . | . . . Robots Melted . | . . . Combat Hostiles . | . . . Parts Melted 6 | . 4 2 Heat Transferred 1608 | 50 865 693 Parts Sabotaged . | . . . Parts Stolen . | . . . Parts Stripped . | . . . Power Chain Reactions . | . . . Alert | -11 -10 -10 ------- Run | Yrd Mat Sub Maximum Alert Level . | . . . Low Security (%) 100 | 100 100 . Level 1 . | . . . Level 2 . | . . . Level 3 . | . . . Level 4 . | . . . Level 5 . | . . . High Security . | . . . Max Security . | . . . Peak Influence 70 | 10 70 . Initial . | . . . Average 14 | . 15 . Influence Increases 394 | 10 324 60 Destroy 0b10 Robot/C 220 | . 160 60 Destroy 0b10 Robot/NC 20 | 10 10 . Destroy Leader 32 | . 32 . Successful Hack 47 | . 47 . Select Force Hacks 30 | . 30 . Lose Combat Pursuer 45 | . 45 . Influence Decreases 384 | 10 324 50 Time Decay 352 | 10 324 18 Lost Part 32 | . . 32 Squads Dispatched 1 | . 1 . Investigation 1 | . 1 . Extermination . | . . . Reinforcement . | . . . Assault . | . . . Garrison . | . . . Intercept . | . . . Searches Triggered . | . . . Construction Impeded . | . . . Haulers Reinforced . | . . . Active Scanning Responses . | . . . Cargo Convoy Interrupts . | . . . Stealth | -11 -10 -10 --------- Run | Yrd Mat Sub Distress Signals 1 | . 1 . Communications Jammed . | . . . Distress Signals . | . . . Times Spotted 33 | . 17 16 Peak Tracking Total 3 | . 3 2 Tactical Retreats 2 | . 2 . Traps | -11 -10 -10 ------- Run | Yrd Mat Sub Traps Triggered 6 | . 2 4 Indirectly . | . . . Trap Hack Attempts . | . . . Triggered . | . . . Disarmed . | . . . Reprogrammed . | . . . Reused . | . . . Traps Extracted . | . . . Installed . | . . . Triggered . | . . . Machines | -11 -10 -10 ---------- Run | Yrd Mat Sub Machines Disabled . | . . . Max in Single Turn . | . . . Machines Repaired . | . . . Machines Dismantled . | . . . Machines Sabotaged . | . . . Overloaded Fab Kills . | . . . Hacking | -11 -10 -10 --------- Run | Yrd Mat Sub Machines Accessed 12 | . 9 3 Terminals 7 | . 7 . Fabricators . | . . . Repair Stations 1 | . 1 . Recycling Units 1 | . 1 . Scanalyzers . | . . . Garrison Access . | . . . Total Hacks 41 | . 30 11 Successful 29 | . 18 11 Failed 12 | . 12 . Catastrophic 2 | . 2 . Database Lockouts . | . . . Manual 25 | . 25 . Terminals 24 | . 24 . Fabricators . | . . . Repair Stations 5 | . 5 . Recycling Units 1 | . 1 . Scanalyzers . | . . . Garrison Access . | . . . Terminal Hacks 13 | . 2 11 Record 8 | . . 8 Open Door 1 | . . 1 Terminal Index 1 | . 1 . Zone Layout 1 | . 1 . Proto ID Catalog 1 | . . 1 Release Object 1 | . . 1 Fabricator Hacks . | . . . Repair Station Hacks 4 | . 4 . Scan Component 2 | . 2 . Repair 2 | . 2 . Recycling Unit Hacks . | . . . Scanalyzer . | . . . Garrison Access Hacks . | . . . Unauthorized Hacks 12 | . 12 . Terminals 11 | . 11 . Botnet 3 | . 3 . Operators 1 | . 1 . Skim 7 | . 7 . Fabricators . | . . . Repair Stations . | . . . Recycling Units 1 | . 1 . Tunnel 1 | . 1 . Scanalyzers . | . . . Garrison Access . | . . . Data Cores Recovered . | . . . Used . | . . . Hacking Detections 7 | . 7 . Full Trace Events 1 | . 1 . Feedback Events . | . . . Feedback Blocked . | . . . Robot Schematics Acquired . | . . . Robots Built . | . . . Authchips . | . . . Time . | . . . Total Robot Build Rating . | . . . Part Schematics Acquired . | . . . Parts Built . | . . . Authchips . | . . . Time . | . . . Total Part Build Rating . | . . . Part Studies Acquired . | . . . Parts Repaired 2 | . 2 . Time 52 | . 52 . Parts Recycled . | . . . Recycled Matter . | . . . Retrieved Matter . | . . . Retrieved Components . | . . . Parts Scanalyzed . | . . . Part Schematics Acquired . | . . . Parts Damaged . | . . . Bothacking | -11 -10 -10 ------------ Run | Yrd Mat Sub Used RIF Installer . | . . . Robots Hacked . | . . . Non-combat . | . . . Combat . | . . . Robot Hacks Applied . | . . . Relay Couplers Released . | . . . Fabnet Peak Effective % . | . . . Robots Rewired . | . . . Allies Hacked . | . . . Hacks Repelled . | . . . Allies | -11 -10 -10 -------- Run | Yrd Mat Sub Total Allies . | . . . Largest Group . | . . . Highest-Rated Group . | . . . Highest-Rated Ally . | . . . Total Orders . | . . . Ally Attacks . | . . . Total Damage . | . . . Kills . | . . . Allies Corrupted . | . . . Allies Melted . | . . . Intel | -11 -10 -10 ------- Run | Yrd Mat Sub Active Infowar (turns) 3761 | 26 1036 2699 Optics 756 | . . 756 Seismic 3005 | 26 1036 1943 Robot Analysis Total . | . . . Derelict Logs Recovered 2 | . . 2 Drone Launches . | . . . Drone Recoveries . | . . . Exploration | -11 -10 -10 ------------- Run | Yrd Mat Sub Turns Passed 4447 | 87 1214 3146 Spaces Moved 2275 | 41 535 1699 Core 1 | 1 . . Treads 1818 | 40 535 1243 Legs . | . . . Wheels 456 | . . 456 Hover . | . . . Flight . | . . . Fastest Speed 50 | 50 160 110 Average Speed 159 | 157 160 159 Slowest Speed 240 | 160 160 240 Overloaded Moves . | . . . Propulsion Burnouts . | . . . Robots Hopped . | . . . Potential Cave-ins . | . . . Cave-ins Triggered . | . . . Exploration Rate (%) 50 | 3 64 84 Regions Visited 2 Branch Regions 1 Pre-discovered Areas 3 | . 2 1 Known Exits Taken 1 | . 1 . Unknown Exits Taken 1 | 1 . . Scrap Searched 11 | . . 11 Spaces Dug . | . . . Terrain Destroyed 3 | . . 3 Melee . | . . . Projectile 3 | . . 3 AOE . | . . . Terrain Rammed . | . . . Walls Destroyed . | . . . Machines Disabled . | . . . Actions | -11 -10 -10 --------- Run | Yrd Mat Sub Total 2858 | 52 835 1971 Wait 342 | . 232 110 Move 2273 | 40 534 1699 Hop . | . . . Pick Up 31 | 1 6 24 Fast Attach 15 | 7 2 6 Attach 30 | . 12 18 Detach 21 | . 13 8 Swap 2 | . 1 1 Drop 13 | . 1 12 Fire 127 | 4 31 92 Melee . | . . . Ram . | . . . Kick . | . . . Crush 3 | . 3 . Escape Stasis . | . . . Rewire . | . . . Trap . | . . . Miscellaneous 1 | . . 1 Route ------- -11/Scrapyard -10/Materials (discovered 4 exits: [*Mat x2] / *Min / *Sub) -10/Subcaves (discovered 2 exits: [*Mat x2]) History --------- Turn | Location | Event 11 | -11/Scrapyard | Discovered new exit (range 15) 88 | -11/Scrapyard | Entered Materials 322 | -10/Materials | Build established: Mutant 423 | -10/Materials | Discovered new exit (range 11) 616 | -10/Materials | Repaired Lgt. Armor Plating 643 | -10/Materials | Repaired Assault Rifle 980 | -10/Materials | Discovered new exit (range 8) 1077 | -10/Materials | Loaded intel: 7 terminal locations 1116 | -10/Materials | Learned location of 1 exit from Recycling 1144 | -10/Materials | Identified exit to Mines 1160 | -10/Materials | Learned location of Mines (-10) 1164 | -10/Materials | Learned location of 1 exit from Recycling 1171 | -10/Materials | Learned Storage terminal intel 1189 | -10/Materials | Identified exit to Subcaves 1302 | -10/Materials | Entered Subcaves 1303 | -10/Subcaves | Approached by a straggling Scientist 1416 | -10/Subcaves | Discovered new exit (range 10) 1454 | -10/Subcaves | Released subatomizers from SUBCON Basin 1690 | -10/Subcaves | Discovered new exit (range 10) 1691 | -10/Subcaves | Shifting Twisted Machinery released Sub. Power Source 1813 | -10/Subcaves | Build established: Scavenger-Mutant 1818 | -10/Subcaves | A swath of the cavern ceiling suddenly collapsed 1821 | -10/Subcaves | Learned location of Zion (-7) 2020 | -10/Subcaves | Core integrity fell below 50% 2134 | -10/Subcaves | Learned location of 1 exit from Materials 2198 | -10/Subcaves | Build established: Mutant 2285 | -10/Subcaves | Disturbed a concealed Subdweller 2474 | -10/Subcaves | Shifting Twisted Machinery released Mak. Laser 2490 | -10/Subcaves | Shifting Twisted Machinery released Sub. Machine Gun 2566 | -10/Subcaves | Disturbed a concealed Subdweller 3172 | -10/Subcaves | Shifting Twisted Machinery released Sub. Optics 3231 | -10/Subcaves | Shifting Twisted Machinery released Sub. Monowheel 4145 | -10/Subcaves | Visited 4L-MR0's lab 4316 | -10/Subcaves | Shifting Twisted Machinery released Sub. Machine Gun 4357 | -10/Subcaves | Core integrity fell below 20% 4448 | -10/Subcaves | Destroyed by G-47 Trooper with Particle Gun Last Messages --------------- wrong. Still I'm glad they didn't listen, that way I'm not culpable for whatever they would've done with it. If we're lucky even some of the others got blasted, too. 04198_ Sub. Monowheel shoots sparks and powers down. Sub. Machine Gun falls loose from the Twisted Machinery. 04321_ SM-WCR(R): "SUBMAD!" 04363_ SM-WCR(R) destroyed. 04369_ Acquired 12 matter. 04379_ Acquired Mak. Light Armor Plating. 04403_ Acquired 10 matter. 04407_ Acquired Sub. Power Source. 04427_ Dropped Seismic Detector. 04429_ Acquired Seismic Detector. 04442_ G-34 Mercenary destroyed. 04444_ Critical hit (Burn: +37). 04446_ Sub. Machine Gun destroyed. 04447_ Aluminum Leg fries itself beyond repair. Map ----- +----------------------------------------------------+ | #???????????????????## ##""[ #????????????????? | | ???????????????????## """ ! #?????#######????? | | ??????????????????## """ % ####?##" #????? | | ??????????????????# " ###" < #????? | | ??????????????????#### ### ""% #?????? | | ?????????????????????#######?#"""" " #?????? | | ????????????????????????????##""#"# # """ #?????? | | ????????????????????????????#"""#####""" #?????? | | ????????????????????????????# """##### ##????? | | ????????????????????????????# ""##""#### #????? | | ????????????????????????????# """ ###?# ##????? | | ????????????????????##??????##### "#?## #????? | | ????????????????????# ###???????## ##### ##????? | | ??????????????#####?# #???????#"&& # # #????? | | ?##??????????## ##?# #########"" != #????? | | ?# """???????# ### ## &"" !% #????? | | ?# " ""#????# % & * ###????? | | ?# ""##### # #############??????? | | ??# "" ## ##??????????????????? | | ??## ""## # ## ### ;##???????????????????? | | ???## ""####### ## ##????????????????????? | | ??????# ""#### ##???????????????????? | | ??????# "" ## #???????????????????? | | ???????#" ###### ##???????????????????? | | #####?## " ##????## # ##???????????????????? | | !#&### "" ##??????## #@ ;#???????????????????? | | =&% & & " ##????????## ##g! #???????????????????? | | #& !## #??????????####[ #???????????????????? | | ###### #????????????# ##???????????????????? | | #???# #????????????# ????????????????????? | | ##???## ##???????????? #???????????????????? | | ###??# ##????????????? #???????????????????? | | #??# ?????????????? ???????????????????? | | #? ?????????????? ??????????????????? | | # ## ????????????? ??????????????????? | | ?# ### ????????????? #?????????????????? | | ??# #??##???????????# ##?????????????????? | | ??? #??????????????? ##??????????????????? | | ??? ##??????????????? ##???????????????????? | | ???? ##???????????????? #?????????????????????? | | ???? #????????????????? ??????????????????????? | | ?? #?????????????????# #??????????????????????? | | ?? ??????????????????????????????????????????? | | ?????????????????????????????????????????????? | | ?? ????????????????????????????????????????????? | | ??? ????????????????????????????????????????????? | | ?????????????????????????????????????????????????? | | ?????????????????????????????????????????????????? | | ?????????????????????????????????????????????????? | | ?????????????????????????????????????????????????? | +----------------------------------------------------+ Best States ------------- Heat Dissipation 25 Energy Generation 15 Energy Capacity 250 Matter Stores 300 Matter Capacity 300 Sight Range 21 Terrain Scan Density 10 Armor Coverage 150 Evasion (%) 40 Recoil Reduction 2 Item Schematics ----------------- None Robot Schematics ------------------ None Fabricated ------------ Nothing Repaired ---------- Lgt. Armor Plating | 26% | -10/Materials Assault Rifle | 29% | -10/Materials Studied --------- None Alien Tech Used ----------------- None Achievements -------------- None Challenges ------------ None Game ------ Seed AssaultSuperchargedEngine Manual? 0 Play Time 00:23:54 Cumulative 67.6 hours Start 2026.07.17 @ 09:12:20 End 2026.07.17 @ 09:35:06 Sessions 1 Manual Loads 0 Difficulty Rogue Special Mode None Game No. 75 Rogue 75 Adventurer 0 Explorer 0 Win Type - Total 1 Types 1/0/0/0/0/0/0/0/0/0 Lore% 54 Gallery% 42 Achievement% 38 Wizard Run 0 Options --------- Layout 1 ASCII 0 Keyboard 1 Movement Numpad Keybinds 1 Fullscreen 2 Font 24/Smallcaps Map View 50x40 Zoom Use 0% Tactical HUD 1 Map Filters NONE Filters NONE Steam 1 RUN: f6a5f519-85d8-45e0-8407-af4c4d87847a